Cogmind - Beta 15 @@@ ROGUE MODE // 2025.05.08 @ 13:31:04 Player: Sunrosa Result: Destroyed by G-34 Mercenary with Small Laser Performance ------------- Evolutions (0) 0 Regions Visited (2) 400 Robots Destroyed (19) 95 Value Destroyed (358) 358 Prototype IDs (2) 40 Alien Tech Used (0) 0 Bonus (0) 0 TOTAL SCORE: 893 Bonus ------- None Cogmind --------- Core Integrity 0/250 Matter 240/300 Energy 94/100 System Corruption 1% Temperature Cool (6) Movement Core (50) Location -10/Mines Parts ------- > --- POWER (1) -------- (None) > --- PROPULSION (2) --- (None) > --- UTILITY (2) ------ (None) > --- WEAPON (2) ------- (None) > --- INVENTORY (5) ---- Propulsion Shielding Small Laser Particle Gun Light Assault Rifle Light Assault Rifle Peak State ------------ > --- POWER ------------ Light Ion Engine > --- PROPULSION ------- Light Treads Wheel > --- UTILITY ---------- Improved Heat Sink Huge Storage Unit > --- WEAPON ----------- Small Laser Particle Gun > --- INVENTORY -------- Ion Engine Light Treads Aluminum Leg Aluminum Leg Aluminum Leg Seismic Detector Small Laser Salvaging Laser Light Assault Rifle Grenade Launcher [Rating: 11] Favorites ----------- Power Light Ion Engine Engine Light Ion Engine Propulsion Light Treads Treads Light Treads Leg Aluminum Leg Wheel Wheel Utility Huge Storage Unit Device Improved Heat Sink Storage Huge Storage Unit Weapon Small Laser Energy Gun Small Laser Ballistic Gun Light Assault Rifle Launcher Grenade Launcher Impact Weapon Hammer Build | -11 -10 -10 ------- Run | Yrd Mat Min Slots Evolved . | . . . Power . | . . . Propulsion . | . . . Utility . | . . . Weapon . | . . . Parts Attached 22 | 2 19 1 Power 3 | . 3 . Engine 3 | . 3 . Core . | . . . Reactor . | . . . Propulsion 6 | . 6 . Treads 2 | . 2 . Leg 3 | . 3 . Wheel 1 | . 1 . Hover . | . . . Flight . | . . . Utility 3 | 1 2 . Device 2 | 1 1 . Storage 1 | . 1 . Processor . | . . . Hackware . | . . . Protection . | . . . Artifact . | . . . Weapon 10 | 1 8 1 Energy Gun 6 | . 5 1 Energy Cannon . | . . . Ballistic Gun 2 | 1 1 . Ballistic Cannon . | . . . Launcher 1 | . 1 . Special Weapon . | . . . Impact Weapon 1 | . 1 . Slashing Weapon . | . . . Piercing Weapon . | . . . Special Melee Weapon . | . . . Unidentified Prototypes . | . . . Parts Lost 6 | . 1 5 Power 2 | . 1 1 Propulsion 2 | . . 2 Utility . | . . . Weapon 2 | . . 2 Highest Loss Streak 5 | . 1 5 To Critical Strikes . | . . . Average Backups 14 | 6 14 20 Power . | 1 . . Propulsion 3 | 4 3 3 Utility 3 | . 3 5 Weapon 6 | 1 6 11 Tool/Special . | . . . Unused Backups 16 | . 5 11 Power . | . . . Propulsion . | . . . Utility 10 | . 4 6 Weapon 6 | . 1 5 Tool/Special . | . . . Average Slot Usage (%) 98 | . 98 71 Engine 13 | . 13 5 Treads 13 | . 13 8 Leg 4 | . 5 . Wheel 9 | . 9 11 Device 13 | . 13 11 Storage 13 | . 14 11 Energy Gun 21 | . 21 16 Ballistic Gun 5 | . 5 . Peak Build Rating 11 | 7 11 11 Average Rating 9 | 6 9 8 On Entrance 8 | 6 7 11 Naked Turns 9 | . . 9 Heaviest Build 89 | 13 89 87 Greatest Support 40 | 20 40 10 Greatest Overweight (x) 8 | . 8 8 Average Overweight (x) 5 | . 5 2 Largest Inventory Capacity 25 | 8 25 25 Average Capacity 21 | 8 21 21 Most Carried 25 | 7 25 25 Average Carried 14 | 6 15 20 Final Capacity 25 | 8 25 5 Final Carried 25 | 6 25 5 Class Distribution -------------------- 88% | Mutant 11% | Scavenger-Mutant Dominant Class ---------------- Mutant | -10/Materials Mutant | -10/Mines Resources | -11 -10 -10 ----------- Run | Yrd Mat Min Matter Collected 652 | 222 430 . Remotely . | . . . Salvage Created 766 | 22 718 26 Parts 35 | 2 31 2 Haulers Intercepted 2 | . 2 . Recyclers Shooed 2 | . 2 . Parts Field Recycled . | . . . Retrieved Matter . | . . . Parts Self-Destructed . | . . . Prevented . | . . . Kills | -11 -10 -10 ------- Run | Yrd Mat Min Combat Hostiles Destroyed 20 | . 7 13 Guns 7 | . 6 1 AOE 12 | . . 12 Classes Destroyed 8 | 1 6 1 Worker 2 | . 1 1 Builder 1 | . 1 . Tunneler 1 | 1 . . Hauler 2 | . 2 . Recycler 3 | . 3 . Watcher 3 | . 3 . Grunt 7 | . 7 . Assembled 13 | . . 13 Best Kill Streak 14 | 1 3 14 Combat Bots Only 13 | . 2 13 Max Kills in Single Turn 3 | 1 1 3 Gunslinging . | . . . Exploded 3 | . . 3 Melee . | . . . Uniques/NPCs Destroyed . | . . . Combat | -11 -10 -10 -------- Run | Yrd Mat Min Hostile Shots Fired 105 | . 53 52 Missed 30 | . 13 17 Hits 75 | . 40 35 Projectile 75 | . 40 35 Critical Strikes 1 | . 1 . Damage Taken 1003 | . 499 504 Core 250 | . 109 141 Absorbed by Shields . | . . . Core Remaining (%) 100 | 100 . . Volleys Fired 83 | 5 68 10 Largest 2 | 2 2 2 Hottest 115 | 40 115 115 Shots Fired 156 | 10 133 13 Gun 146 | 10 130 6 Cannon . | . . . Launcher 10 | . 3 7 Special . | . . . Kinetic 78 | 10 68 . Thermal 68 | . 62 6 Explosive 10 | . 3 7 Electromagnetic . | . . . Robot Hit Streak 17 | 2 17 4 Robot Miss Streak 4 | 1 4 2 Penetration Max . | . . . Secondary Targets 1 | . 1 . Max Gunslinging Chain 1 | . 1 . Shots Hit Robots 96 | 5 86 5 Core Hits 65 | 3 32 30 Critical Kills . | . . . Critical Parts Destroyed . | . . . Critical Strikes 1 | . 1 . Burn 1 | . 1 . Melee Attacks 2 | . 2 . Impact 2 | . 2 . Slashing . | . . . Piercing . | . . . Sneak Attacks . | . . . Combat Hostiles . | . . . Follow-up Attacks . | . . . Damage Inflicted 1854 | 47 957 850 Guns 1027 | 47 939 41 Cannons . | . . . Explosions 808 | . 18 790 Melee . | . . . Ramming 19 | . . 19 Kinetic 404 | 47 357 . Thermal 623 | . 582 41 Explosive 808 | . 18 790 Electromagnetic . | . . . Impact . | . . . Slashing . | . . . Piercing . | . . . Highest Corruption 1 | . 1 1 Average Corruption 1 | . 1 1 Corruption Purged . | . . . Corruption Blocked . | . . . Effects 5 | . 4 1 Message Errors 3 | . 3 . Matter Fused 2 | . 1 1 Overload Shots . | . . . Overflow Damage 4 | . . 4 Projectiles . | . . . Explosions 4 | . . 4 Melee . | . . . Knockbacks . | . . . Impact . | . . . Kinetic . | . . . Secondary . | . . . Self-Inflicted Damage 24 | . 16 8 Shots 1 | . 1 . Rammed 4 | . . 4 Targets Rammed 4 | . . 4 Kicked . | . . . Crushed . | . . . Highest Temperature 147 | . 147 36 Average Temperature 26 | . 27 24 Received Heat Transfer 372 | . 300 72 Siege Activations . | . . . Martial Activations . | . . . Shielding Activations . | . . . Robots Disrupted . | . . . Combat Hostiles . | . . . Robots Corrupted . | . . . Combat Hostiles . | . . . Parts Fried . | . . . Impact Corruptions . | . . . Robots Melted 1 | . 1 . Combat Hostiles 1 | . 1 . Parts Melted 11 | . 11 . Heat Transferred 1645 | . 1534 111 Parts Sabotaged . | . . . Parts Stolen . | . . . Parts Stripped . | . . . Power Chain Reactions . | . . . Alert | -11 -10 -10 ------- Run | Yrd Mat Min Maximum Alert Level . | . . . Low Security (%) 100 | 100 100 100 Level 1 . | . . . Level 2 . | . . . Level 3 . | . . . Level 4 . | . . . Level 5 . | . . . High Security . | . . . Max Security . | . . . Peak Influence 72 | 5 72 15 Initial . | . . . Average 12 | 1 12 2 Influence Increases 350 | 5 313 32 Destroy 0b10 Robot/C 140 | . 140 . Destroy 0b10 Robot/NC 60 | 5 50 5 Destroy Leader 50 | . 50 . Successful Hack 19 | . 19 . Disable Machine 15 | . 15 . Destroy Structure 51 | . 24 27 Lose Combat Pursuer 15 | . 15 . Influence Decreases 350 | 5 313 32 Time Decay 318 | 5 303 10 Lost Part 32 | . 10 22 Squads Dispatched 2 | . 2 . Investigation . | . . . Extermination . | . . . Reinforcement 2 | . 2 . Assault . | . . . Garrison . | . . . Intercept . | . . . Searches Triggered . | . . . Construction Impeded . | . . . Haulers Reinforced . | . . . Active Scanning Responses . | . . . Cargo Convoy Interrupts . | . . . Stealth | -11 -10 -10 --------- Run | Yrd Mat Min Distress Signals 2 | . 2 . Communications Jammed . | . . . Distress Signals . | . . . Times Spotted 39 | . 19 20 Peak Tracking Total 17 | . 4 17 Tactical Retreats 1 | . 1 . Traps | -11 -10 -10 ------- Run | Yrd Mat Min Traps Triggered 6 | . 6 . Indirectly . | . . . Trap Hack Attempts . | . . . Triggered . | . . . Disarmed . | . . . Reprogrammed . | . . . Reused . | . . . Traps Extracted . | . . . Installed . | . . . Triggered . | . . . Machines | -11 -10 -10 ---------- Run | Yrd Mat Min Machines Disabled 1 | . 1 . Max in Single Turn 1 | . 1 . Machines Repaired . | . . . Machines Dismantled . | . . . Machines Sabotaged . | . . . Overloaded Fab Kills . | . . . Hacking | -11 -10 -10 --------- Run | Yrd Mat Min Machines Accessed 6 | . 6 . Terminals 5 | . 5 . Fabricators . | . . . Repair Stations . | . . . Recycling Units 1 | . 1 . Scanalyzers . | . . . Garrison Access . | . . . Total Hacks 22 | . 22 . Successful 9 | . 9 . Failed 13 | . 13 . Catastrophic 4 | . 4 . Database Lockouts . | . . . Manual 20 | . 20 . Terminals 19 | . 19 . Fabricators . | . . . Repair Stations . | . . . Recycling Units 3 | . 3 . Scanalyzers . | . . . Garrison Access . | . . . Terminal Hacks 6 | . 6 . Record 1 | . 1 . Part Schematic 1 | . 1 . Robot Analysis 3 | . 3 . Prototype ID Bank 1 | . 1 . Fabricator Hacks . | . . . Repair Station Hacks . | . . . Recycling Unit Hacks . | . . . Scanalyzer . | . . . Garrison Access Hacks . | . . . Unauthorized Hacks 3 | . 3 . Terminals 1 | . 1 . Botnet 1 | . 1 . Fabricators . | . . . Repair Stations . | . . . Recycling Units 2 | . 2 . Reject 1 | . 1 . Mask 1 | . 1 . Scanalyzers . | . . . Garrison Access . | . . . Data Cores Recovered . | . . . Used . | . . . Hacking Detections 5 | . 5 . Full Trace Events 2 | . 2 . Feedback Events . | . . . Feedback Blocked . | . . . Robot Schematics Acquired . | . . . Robots Built . | . . . Authchips . | . . . Time . | . . . Total Robot Build Rating . | . . . Part Schematics Acquired 1 | . 1 . Parts Built . | . . . Authchips . | . . . Time . | . . . Total Part Build Rating . | . . . Parts Repaired . | . . . Time . | . . . Parts Recycled . | . . . Recycled Matter . | . . . Retrieved Matter . | . . . Retrieved Components . | . . . Parts Scanalyzed . | . . . Part Schematics Acquired . | . . . Parts Damaged . | . . . Bothacking | -11 -10 -10 ------------ Run | Yrd Mat Min Used RIF Installer . | . . . Robots Hacked . | . . . Non-combat . | . . . Combat . | . . . Robot Hacks Applied . | . . . Relay Couplers Released . | . . . Fabnet Peak Effective % . | . . . Robots Rewired . | . . . Allies Hacked . | . . . Hacks Repelled . | . . . Allies | -11 -10 -10 -------- Run | Yrd Mat Min Total Allies . | . . . Largest Group . | . . . Highest-Rated Group . | . . . Highest-Rated Ally . | . . . Total Orders . | . . . Ally Attacks . | . . . Total Damage . | . . . Kills . | . . . Allies Corrupted . | . . . Allies Melted . | . . . Intel | -11 -10 -10 ------- Run | Yrd Mat Min Active Infowar (turns) 413 | 24 389 . Seismic 413 | 24 389 . Robot Analysis Total 3 | . 3 . Derelict Logs Recovered . | . . . Drone Launches . | . . . Drone Recoveries . | . . . Exploration | -11 -10 -10 ------------- Run | Yrd Mat Min Turns Passed 2023 | 58 1920 45 Spaces Moved 895 | 34 845 16 Core 15 | . 4 11 Treads 58 | . 58 . Legs 233 | 34 199 . Wheels 589 | . 584 5 Hover . | . . . Flight . | . . . Fastest Speed 50 | 120 100 50 Average Speed 183 | 120 188 96 Slowest Speed 320 | 120 320 200 Overloaded Moves . | . . . Propulsion Burnouts . | . . . Robots Hopped . | . . . Potential Cave-ins . | . . . Cave-ins Triggered . | . . . Exploration Rate (%) 34 | 3 94 7 Regions Visited 2 Branch Regions 1 Pre-discovered Areas . | . . . Known Exits Taken . | . . . Unknown Exits Taken 2 | 1 1 . Scrap Searched . | . . . Spaces Dug 2 | . 2 . Terrain Destroyed 67 | . 24 43 Melee 2 | . 2 . Projectile . | . . . AOE 65 | . 22 43 Terrain Rammed . | . . . Walls Destroyed . | . . . Machines Disabled . | . . . Actions | -11 -10 -10 --------- Run | Yrd Mat Min Total 1116 | 42 1042 32 Wait 63 | 1 62 . Move 893 | 33 844 16 Hop . | . . . Pick Up 26 | 1 25 . Fast Attach 10 | . 10 . Attach 3 | 1 1 1 Detach . | . . . Swap 24 | 1 22 1 Drop 8 | . 8 . Fire 83 | 5 68 10 Melee 2 | . 2 . Ram 4 | . . 4 Kick . | . . . Crush . | . . . Escape Stasis . | . . . Rewire . | . . . Trap . | . . . Miscellaneous . | . . . Route ------- -11/Scrapyard -10/Materials (discovered 6 exits: [*Mat x3] / [*Min x2] / [*Sub]) -10/Mines History --------- Turn | Location | Event 1 | -11/Scrapyard | Discovered new exit (range 3) 59 | -11/Scrapyard | Entered Materials 60 | -10/Materials | Met a group of wandering Federalists 176 | -10/Materials | Lost 6 allies 230 | -10/Materials | Discovered new exit (range 10) 315 | -10/Materials | Build established: Mutant 816 | -10/Materials | Discovered new exit (range 12) 1143 | -10/Materials | Discovered new exit (range 16) 1495 | -10/Materials | Discovered new exit (range 14) 1629 | -10/Materials | Discovered new exit (range 8) 1717 | -10/Materials | Discovered new exit (range 15) 1979 | -10/Materials | Entered Mines 1980 | -10/Mines | Assembled infested the area 2008 | -10/Mines | Core integrity fell below 50% 2015 | -10/Mines | Core integrity fell below 20% 2015 | -10/Mines | Released all parts (3) 2024 | -10/Mines | Destroyed by G-34 Mercenary with Small Laser Last Messages --------------- 02001_ System corrupted: Matter fused (-5). 02001_ as-13531 destroyed. 02001_ as-42242 destroyed. 02001_ as-19786 destroyed. 02001_ K-01 Serf collects debris. 02003_ as-34210 destroyed. 02003_ as-02980 destroyed. 02003_ Grenade Launcher destroyed. 02009_ as-31936 destroyed. 02009_ Lgt. Treads destroyed. 02011_ Wheel destroyed. 02014_ The unstable cave ceiling collapses. 02015_ Particle Gun destroyed. 02015_ Released Imp. Heat Sink. 02015_ Released Huge Storage Unit. 02015_ Released Med. Laser. 02016_ The unstable cave ceiling collapses. 02016_ as-75721 suffers critical hit (Burn). 02021_ Slammed into G-47 Trooper. 02023_ Slammed into G-34 Mercenary. Map ----- +----------------------------------------------------+ | | | | | | | | | | | | | | | | | ???????????????????????????????????????????? | | ???????????????????????????????????????????? | | ???????????????????????????????????????????? | | ???????????????????????????????????????????? | | ???????????????????????????????????????????? | | ???????????????????#######?????????????????? | | ???????????????????# #?????????????????? | | ???????????????????# #?????????????????? | | ???????????????????# ######????????????? | | ???????????????????# """[!!!!!##???????????? | | ???????????????????# """ !![[*[#???????????? | | ???????????????????# """ ##=%[[#???????????? | | ???????????????????# #![=!=/#??????????? | | ???????????????????### ### [= #?????????? | | ?????????????????????# #?## #?????????? | | ?????????????????????# #?## #?????????? | | ????????????????###### #? # $$ ????????? | | ????????????????# g@ g #? ###???????? | | ????????????????# ####### #?????????? | | ????????????????????????# #?????????? | | ????????????????????????## % #?????????? | | ????????????????????????? ?????????? | | ????????????????????????? ###?????????? | | ????????????????????????? #???????????? | | ?????????????????????????? #????????????? | | ???????????????????????????????????????????? | | ???????????????????????????????????????????? | | ???????????????????????????????????????????? | | ???????????????????????????????????????????? | | ???????????????????????????????????????????? | | ???????????????????????????????????????????? | | ???????????????????????????????????????????? | | ???????????????????????????????????????????? | | ???????????????????????????????????????????? | | ???????????????????????????????????????????? | | ???????????????????????????????????????????? | | ???????????????????????????????????????????? | | ???????????????????????????????????????????? | | ???????????????????????????????????????????? | | ???????????????????????????????????????????? | | ???????????????????????????????????????????? | | ???????????????????????????????????????????? | +----------------------------------------------------+ Best States ------------- Heat Dissipation 39 Energy Generation 10 Energy Capacity 250 Matter Stores 300 Matter Capacity 300 Sight Range 16 Terrain Scan Density 10 Evasion (%) 55 Recoil Reduction 2 Item Schematics ----------------- Med. Storage Unit | -10/Materials | Hacked Robot Schematics ------------------ None Fabricated ------------ Nothing Repaired ---------- Nothing Alien Tech Used ----------------- None Achievements -------------- None Challenges ------------ None Game ------ Seed HypercooledSensorCloak Manual? 0 Play Time 00:23:22 Cumulative 93.4 hours Start 2025.05.08 @ 12:46:00 End 2025.05.08 @ 13:31:04 Sessions 2 Manual Loads 0 Difficulty Rogue Special Mode None Game No. 46 Rogue 45 Adventurer 1 Explorer 0 Win Type - Total 3 Types 2/0/1/0/0/0/0/0/0/0 Lore% 26 Gallery% 41 Achievement% 42 Wizard Run 0 Options --------- Layout 0 ASCII 0 Keyboard 1 Movement Vi Keybinds 1 Fullscreen 2 Font 18/X11Bold Map View 76x50 Zoom Use 3% Tactical HUD 1 Map Filters NONE Filters LOW_CONTRAST(26,18,33) Steam 1 RUN: 9b0e5aa9-e624-41fe-8545-325886d3c919